fUST/lending_fUST_20251101
["ID","MTS","AMOUNT","RATE_DAILY","PERIOD"]
[392790249,1761952233068,-289.11991208,0.00034606,2]
[392790252,1761952233084,-43497.94509824,0.00034606,2]
[392790254,1761952233093,-199.0,0.00034619,7]
[392790256,1761952233102,-500.0,0.00034619,4]
[392790258,1761952233111,-500.0,0.00034893,4]
[392790260,1761952233119,-500.0,0.00035167,4]
[392790262,1761952233128,-154.22493,0.0003537,4]
[392790264,1761952233138,-168.0,0.00035386,2]
[392790266,1761952233147,-154.22493,0.00035387,2]
[392790268,1761952233156,-500.0,0.00035441,4]
[392790270,1761952233166,-500.0,0.00035715,4]
[392790272,1761952233175,-500.0,0.00035989,4]
[392790274,1761952233184,-555.867,0.00036203,2]
[392790276,1761952233194,-412.0,0.00036214,2]
[392790278,1761952233203,-500.0,0.00036263,4]
[392790280,1761952233212,-500.0,0.00036537,4]
[392790282,1761952233222,-500.0,0.00036811,4]
[392790284,1761952233231,-150.271,0.00036825,2]
[392790286,1761952233240,-150.0,0.00036825,2]
[392790288,1761952233249,-250.892,0.00036825,2]
[392790290,1761952233258,-500.0,0.00037073,4]
[392790292,1761952233267,-500.0,0.00037073,4]
[392790294,1761952233281,-500.0,0.00037085,4]
[392790296,1761952233290,-168.0,0.00037087,2]
[392790298,1761952233300,-227.0,0.00037118,2]
[392790301,1761952233309,-177.74033729,0.00037271,2]
[392790303,1761952233319,-177.74033728,0.00037276,2]
[392790305,1761952233328,-3031.26693744,0.00037281,2]
[392790307,1761952233337,-177.74033728,0.00037281,2]
[392790309,1761952233346,-500.0,0.00037347,4]
[392790311,1761952233356,-192.95,0.00037352,10]
[392790313,1761952233365,-160.79,0.00037352,10]
[392790315,1761952233374,-500.0,0.00037359,4]
[392790317,1761952233384,-73200.2875257,0.00037363,3]
[392790319,1761952233393,-439.57500398,0.00037363,3]
[392790321,1761952233403,-151.0,0.00037369,2]
[392790323,1761952233412,-151.0,0.00037369,2]
[392790325,1761952233421,-151.0,0.00037369,2]
[392790327,1761952233430,-151.0,0.00037369,2]
[392790329,1761952233440,-151.0,0.00037369,2]
[392790331,1761952233449,-151.0,0.00037369,2]
[392790333,1761952233458,-151.0,0.00037369,2]
[392790335,1761952233468,-151.0,0.00037369,2]
[392790337,1761952233477,-151.0,0.00037369,2]
[392790339,1761952233487,-151.0,0.00037369,2]
[392790341,1761952233496,-151.0,0.00037369,2]
[392790343,1761952233505,-151.0,0.00037369,2]
[392790345,1761952233516,-151.0,0.00037369,2]
[392790347,1761952233525,-151.0,0.00037369,2]
[392790349,1761952233534,-151.0,0.00037369,2]
[392790351,1761952233543,-151.0,0.00037369,2]
[392790353,1761952233552,-151.0,0.00037369,2]
[392790355,1761952233561,-151.0,0.00037369,2]
[392790357,1761952233570,-151.0,0.00037369,2]
[392790359,1761952233580,-151.0,0.00037369,2]
[392790361,1761952233590,-54298.52558763,0.00037371,3]
[392790468,1761952238468,-150.0,0.00033643,2]
[392790470,1761952238478,-150.0,0.00036701,2]
[392790472,1761952238488,-803.99,0.00037352,10]
[392790474,1761952238498,-14921.26093095,0.00037371,3]
[392790682,1761952240813,-1207.2981758,0.00037371,3]
[392790948,1761952243629,-194058.11874756,0.00037371,3]
[392791128,1761952246742,-1302.37061982,0.00037371,3]
[392791130,1761952250778,-150.0,0.000423,30]
[392791152,1761952286427,-150.0,0.000423,30]
[392791157,1761952292322,-150.0,0.00045484,30]
[392791159,1761952293667,-150.0,0.00045484,30]
[392791160,1761952294086,-150.0,0.00045484,30]
[392791184,1761952338596,452.360987,0.00013699,2]
[392791185,1761952338795,452.360987,0.00020187,2]
[392791243,1761952432239,-150.0,0.000374,30]
[392791247,1761952434892,-150.0,0.000374,30]
[392791251,1761952439461,-68.72,0.000374,30]
[392791253,1761952439490,-81.28,0.00041,30]
[392791256,1761952442442,-150.0,0.00041,30]
[392791257,1761952444455,-137.44,0.00041,30]
[392791258,1761952444482,-12.56,0.00045484,30]
[392791260,1761952445987,-128.7261859,0.00045484,30]
[392791262,1761952446012,-21.2738141,0.000527,30]
[392791264,1761952451611,-150.0,0.000527,30]
[392791269,1761952456509,-150.0,0.000527,30]
[392791943,1761953131674,302.57643837,0.000189,2]
[392791944,1761953131705,302.57643837,0.00019089,2]
[392791945,1761953131752,217.61629802,0.00019278,2]
[392791999,1761953171275,150.0,0.0002589,2]
[392792054,1761953227897,-452.360987,0.00026676,2]
[392792055,1761953227926,-177.0,0.0002789,2]
[392792056,1761953227959,-150.0,0.00029803,2]
[392792057,1761953227988,-204.0,0.0002989,2]
[392792058,1761953228018,-231.0,0.0003189,2]
[392792059,1761953228052,-150.0,0.00032512,2]
[392792060,1761953228081,-452.360987,0.00033165,2]
[392792061,1761953228109,-283.521283,0.00033235,2]
[392792062,1761953228138,-1936.8567276,0.00033683,2]
[392792063,1761953228345,-4781.8075239,0.00034513,2]
[392792064,1761953228457,-500.0,0.00034605,4]
[392792065,1761953228488,-500.0,0.00034619,4]
[392792066,1761953228517,-500.0,0.00034619,4]
[392792067,1761953228546,-500.0,0.00034619,4]
[392792068,1761953228575,-2647.67220196,0.00034879,2]
[392792069,1761953228605,-204.66559608,0.00034879,4]
[392792070,1761953228792,-295.33440392,0.00034879,4]
[392792071,1761953228821,-500.0,0.00034893,4]
[392792072,1761953228850,-500.0,0.00034893,4]
[392792073,1761953228878,-500.0,0.00034893,4]
[392792074,1761953228908,-500.0,0.00035153,4]
[392792075,1761953228937,-500.0,0.00035167,4]
[392792076,1761953228966,-500.0,0.00035167,4]
[392792077,1761953228998,-150.0,0.00035221,2]
[392792078,1761953229027,-500.0,0.00035427,4]
[392792079,1761953229056,-160.7,0.00035441,4]
[392792080,1761953229083,-500.0,0.00035441,4]
[392792081,1761953229111,-315.94,0.00035701,4]
[392792082,1761953229217,-427.46000046,0.00035715,4]
[392792084,1761953229713,-3795.6555947,0.0003699,2]
[392792085,1761953229739,-10000.01,0.0003699,2]
[392792087,1761953229757,-1867.52909104,0.0003699,2]
[392792088,1761953229766,-988.07765805,0.00037081,2]
[392792089,1761953229776,-185.70155412,0.00037181,2]
[392792090,1761953229785,-185.70155412,0.00037191,2]
[392792091,1761953229795,-185.70155412,0.000372,2]
[392792092,1761953229804,-2020.84462496,0.000372,2]
[392792093,1761953229813,-174.85049255,0.00037257,15]
[392792094,1761953229823,-345.01216351,0.00037257,15]
[392792095,1761953229832,-522.18588522,0.00037257,2]
[392792096,1761953229841,-151.0,0.00037258,2]
[392792097,1761953229852,-151.0,0.00037258,2]
[392792098,1761953229861,-151.0,0.00037258,2]
[392792099,1761953229871,-151.0,0.00037258,2]
[392792100,1761953229880,-151.0,0.00037258,2]
[392792101,1761953229889,-151.0,0.00037258,2]
[392792102,1761953229898,-151.0,0.00037258,2]
[392792103,1761953229907,-151.0,0.00037258,2]
[392792104,1761953229917,-151.0,0.00037258,2]
[392792105,1761953229926,-151.0,0.00037258,2]
[392792106,1761953229935,-151.0,0.00037258,2]
[392792107,1761953229944,-151.0,0.00037258,2]
[392792108,1761953229953,-151.0,0.00037258,2]
[392792109,1761953229963,-151.0,0.00037258,2]
[392792110,1761953229972,-151.0,0.00037258,2]
[392792111,1761953229981,-151.0,0.00037258,2]
[392792112,1761953229990,-151.0,0.00037258,2]
[392792113,1761953229999,-151.0,0.00037258,2]
[392792114,1761953230008,-151.0,0.00037258,2]
[392792115,1761953230018,-151.0,0.00037258,2]
[392792116,1761953230027,-504.40542231,0.00037271,3]
[392792117,1761953230041,-10000.01,0.00037271,3]
[392792118,1761953230067,-10000.01,0.00037271,3]
[392792119,1761953230103,-10000.01,0.00037271,3]
[392792120,1761953230133,-10000.01,0.00037271,3]
[392792121,1761953230147,-10000.01,0.00037271,3]
[392792122,1761953230161,-10000.01,0.00037271,3]
[392792123,1761953230175,-10000.01,0.00037271,3]
[392792124,1761953230270,-10000.01,0.00037271,3]
[392792133,1761953233799,-2991.67662581,0.00037271,3]
[392792134,1761953233822,-4016.65674838,0.00037271,3]
[392792142,1761953240527,150.0,0.00029966,2]
[392792143,1761953240923,150.0,0.00032691,2]
[392792145,1761953241346,150.0,0.00035415,2]
[392792188,1761953269136,10000.01,0.00025,5]
[392792189,1761953269159,1747.44169338,0.00025,5]
[392792235,1761953300122,2318.83798029,0.0002,2]
[392792243,1761953304334,676.99556991,0.00026,2]
[392792256,1761953309910,1739.50898933,0.0002,2]
[392792259,1761953312745,3517.22576709,0.0002465,2]
[392792260,1761953312767,10000.01,0.0002465,2]
[392792261,1761953312789,4886.66643419,0.0002465,2]
[392792265,1761953314669,1742.11517525,0.00024142,2]
[392792282,1761953333783,2659.23734472,0.00026,2]
[392792479,1761953431715,-500.0,0.00034605,4]
[392792480,1761953431725,-500.0,0.00034879,4]
[392792481,1761953431734,-500.0,0.00035153,4]
[392792482,1761953431744,-179.9460162,0.00035348,14]
[392792483,1761953431864,-160.7,0.00035427,4]
[392792484,1761953431874,-300.0,0.0003717,2]
[392792485,1761953431883,-200.0,0.0003717,2]
[392792486,1761953431892,-1347.22974996,0.00037171,2]
[392792488,1761953431901,-864.56795082,0.00037171,2]
[392792489,1761953431910,-315.58875642,0.00037178,2]
[392792559,1761953437766,-2823.95640648,0.00037178,2]
[392792560,1761953437777,-226.91216338,0.0003727,15]
[392792561,1761953437787,-500.0,0.0003727,15]
[392792562,1761953437798,-153.36485467,0.0003727,2]
[392792563,1761953437807,-500.0,0.0003727,15]
[392792564,1761953437817,-500.0,0.0003727,15]
[392792565,1761953437826,-474.84995753,0.0003727,15]
[392792566,1761953437835,-500.0,0.0003727,15]
[392792567,1761953437845,-500.0,0.0003727,15]
[392792568,1761953437855,-500.0,0.0003727,15]
[392792569,1761953437865,-500.0,0.0003727,15]
[392792570,1761953437875,-349.74779231,0.0003727,15]
[392792571,1761953437884,-500.0,0.0003727,15]
[392792572,1761953437895,-500.0,0.0003727,15]
[392792573,1761953437905,-500.0,0.0003727,15]
[392792574,1761953437914,-567.14956427,0.0003727,15]
[392792575,1761953437924,-500.0,0.0003727,15]
[392792576,1761953437933,-500.0,0.0003727,15]
[392792577,1761953437943,-200.0,0.0003727,15]
[392792578,1761953437953,-500.0,0.0003727,15]
[392792579,1761953437962,-457.68894022,0.0003727,15]
[392792580,1761953437974,-42.31105978,0.0003727,15]
[392792581,1761953437983,-500.0,0.0003727,15]
[392792582,1761953437992,-500.0,0.0003727,15]
[392792583,1761953438001,-500.0,0.0003727,15]
[392792584,1761953438010,-500.0,0.0003727,15]
[392792585,1761953438020,-37253.33682518,0.00037271,3]
[392792599,1761953439969,-810.69,0.00037271,3]
[392792633,1761953442814,-3947.66028822,0.00037271,3]
[392792634,1761953442906,-10215.35003811,0.00037271,3]
[392792643,1761953445861,-1029.37774229,0.00037271,3]
[392792644,1761953445881,-15196.49125444,0.00037271,3]
[392792645,1761953445893,-46283.53323215,0.00037271,3]
[392792647,1761953445904,-6682.52980171,0.00037271,3]
[392792648,1761953445915,-20529.39512852,0.00037271,3]
[392793652,1761954599405,-315.3928703,0.00033619,2]
[392793653,1761954599438,-400.0,0.000346,2]
[392793654,1761954599470,-1600.0,0.00034601,3]
[392793655,1761954599500,-1600.0,0.00034601,3]
[392793656,1761954599527,-400.0,0.00034602,3]
[392793657,1761954599556,-300.0,0.00034602,3]
[392793658,1761954599585,-300.0,0.00034602,3]
[392793659,1761954599856,-400.0,0.00034602,3]
[392793660,1761954599886,-500.0,0.00034876,7]
[392793661,1761954599915,-500.0,0.00034876,2]
[392793662,1761954599945,-500.0,0.00034876,7]
[392793663,1761954599975,-500.0,0.00034876,2]
[392793664,1761954600006,-500.0,0.00034876,7]
[392793665,1761954600040,-500.0,0.00034876,7]
[392793666,1761954600071,-500.0,0.00034876,2]
[392793667,1761954600108,-500.0,0.00034876,7]
[392793668,1761954600141,-500.0,0.00034876,2]
[392793669,1761954600221,-500.0,0.00034876,7]
[392793670,1761954600251,-500.0,0.00034876,7]
[392793671,1761954600281,-500.0,0.00034876,7]
[392793672,1761954600310,-500.0,0.00034876,2]
[392793673,1761954600342,-202.38467728,0.00034876,7]
[392793674,1761954600371,-410.83626353,0.00034876,7]
[392793675,1761954600401,-500.0,0.00034876,7]
[392793676,1761954600430,-500.0,0.00034876,7]
[392793677,1761954600460,-500.0,0.00034876,7]
[392793678,1761954600490,-500.0,0.00034876,2]
[392793679,1761954600519,-273.56811838,0.00034876,7]
[392793680,1761954600635,-226.43188162,0.00034876,7]
[392793681,1761954600663,-500.0,0.00034876,2]
[392793682,1761954600691,-500.0,0.00034876,7]
[392793683,1761954600720,-500.0,0.00034876,7]
[392793684,1761954600749,-500.0,0.00034876,7]
[392793685,1761954600778,-500.0,0.00034876,2]
[392793686,1761954600807,-500.0,0.00034876,2]
[392793687,1761954600837,-500.0,0.00034876,7]
[392793688,1761954600869,-500.0,0.00034876,7]
[392793689,1761954600898,-500.0,0.00034876,2]
[392793690,1761954600927,-47.14623676,0.00034876,7]
[392793691,1761954601086,-452.85376324,0.00034876,7]
[392793692,1761954601124,-500.0,0.00034876,2]
[392793693,1761954601159,-500.0,0.00034876,7]
[392793694,1761954601190,-500.0,0.00034876,2]
[392793695,1761954601220,-500.0,0.00034876,7]
[392793696,1761954601248,-500.0,0.00034876,2]
[392793697,1761954601276,-500.0,0.00034876,2]
[392793698,1761954601304,-500.0,0.00034876,7]
[392793699,1761954601332,-500.0,0.00034876,2]
[392793700,1761954601359,-500.0,0.00034876,7]
[392793701,1761954601462,-500.0,0.00034876,7]
[392793702,1761954601491,-500.0,0.00034876,2]
[392793703,1761954601521,-390.88033734,0.00034876,7]
[392793704,1761954601551,-500.0,0.00034876,2]
[392793705,1761954601581,-500.0,0.00034876,2]
[392793706,1761954601610,-500.0,0.00034876,2]
[392793707,1761954601639,-500.0,0.00034876,7]
[392793708,1761954601670,-500.0,0.00034876,7]
[392793709,1761954601703,-500.0,0.00034876,7]
[392793710,1761954601736,-500.0,0.00034876,2]
[392793711,1761954601976,-500.0,0.00034876,7]
[392793712,1761954602008,-500.0,0.00034876,2]
[392793713,1761954602041,-500.0,0.00034876,7]
[392793714,1761954602075,-502.81700388,0.00034876,2]
[392793715,1761954602109,-500.0,0.00034876,7]
[392793716,1761954602140,-500.0,0.00034876,7]
[392793717,1761954602173,-500.0,0.00034876,7]
[392793718,1761954602207,-500.0,0.00034876,7]
[392793719,1761954602238,-500.0,0.00034876,2]
[392793720,1761954602269,-494.37599224,0.00034876,7]
[392793721,1761954602419,-5.62400776,0.00034876,7]
[392793722,1761954602452,-500.0,0.00034876,7]
[392793723,1761954602485,-500.0,0.00034876,7]
[392793724,1761954602518,-500.0,0.00034876,7]
[392793725,1761954602552,-500.0,0.00034876,7]
[392793726,1761954602586,-500.0,0.00034876,7]
[392793729,1761954603912,-300.0,0.00034875,3]
[392793731,1761954604904,-6343.12171797,0.00034877,2]
[392793732,1761954604926,-1600.0,0.00034875,3]
[392793733,1761954604937,-8400.01,0.00034877,2]
[392793734,1761954604953,-300.0,0.00034877,2]
[392793735,1761954604968,-9400.01,0.00034877,2]
[392793736,1761954604983,-10000.01,0.00034877,2]
[392793737,1761954604999,-10000.01,0.00034877,2]
[392793738,1761954605330,-4443.17171797,0.00034877,2]
[392793739,1761954605356,-1113.66656406,0.00034877,2]
[392793740,1761954605484,-200.00000059,0.00034877,4]
[392793741,1761954605518,-489.69240973,0.00034877,4]
[392793742,1761954605550,-500.0,0.00034877,4]
[392793743,1761954605584,-493.75818775,0.00034877,4]
[392793744,1761954605619,-500.0,0.00034878,2]
[392793745,1761954605653,-155.209381,0.0003501,15]
[392793746,1761954605686,-500.0,0.00035157,4]
[392793747,1761954605714,-500.0,0.00035157,4]
[392793748,1761954605743,-500.0,0.00035273,5]
[392793749,1761954605777,-150.0,0.00035939,2]
[392793750,1761954605810,-155.209381,0.00036,4]
[392793751,1761954605845,-168.0,0.00036878,2]
[392793752,1761954605880,-168.0,0.00037094,2]
[392793753,1761954605909,-229.0,0.00037115,3]
[392793754,1761954605938,-249.81562764,0.00037126,15]
[392793755,1761954606152,-82.64002458,0.00037126,15]
[392793760,1761954613064,777.8771639,0.00034777,2]
[392793787,1761954631891,-2106.47884385,0.0003694,40]
[392793789,1761954631901,-33383.55119524,0.00037127,3]
[392793794,1761954631939,-4906.8139858,0.00037127,3]
[392793796,1761954631950,-1726.5,0.00037127,3]
[392793798,1761954631962,-1632.52619142,0.00037127,3]
[392793802,1761954631986,-6846.77727836,0.00037127,3]
[392793923,1761954637784,-1311.59072958,0.00037127,3]
[392793974,1761954640146,-12243.37655017,0.00037127,3]
[392794028,1761954642898,-500.0,0.00034876,7]
[392794030,1761954642907,-500.0,0.00034876,7]
[392794032,1761954642916,-105.3,0.00034876,7]
[392794036,1761954642944,-394.7,0.00034876,7]
[392794038,1761954642955,-298726.0551875,0.00037127,3]
[392794200,1761954708569,150.0,0.0002589,2]
[392794202,1761954709314,-177.0,0.0002789,2]
[392794203,1761954710156,172.21390881,0.0003389,120]
[392794222,1761954740149,-204.0,0.0002989,2]
[392794223,1761954740178,-231.0,0.0003189,2]
[392794224,1761954740206,-400.0,0.00035989,2]
[392794225,1761954740435,-7402.1328361,0.0003599,2]
[392794226,1761954740471,-10000.01,0.0003599,2]
[392794227,1761954740487,-10000.01,0.0003599,2]
[392794228,1761954740589,-10000.01,0.0003599,2]
[392794229,1761954740734,-10000.01,0.0003599,2]
[392794230,1761954740870,-10000.01,0.0003599,2]
[392794231,1761954740984,-10000.01,0.0003599,2]
[392794232,1761954741104,-10000.01,0.0003599,2]
[392794233,1761954741275,-10000.01,0.0003599,2]
[392794234,1761954741350,-10000.01,0.0003599,2]
[392794236,1761954745818,-2597.7771639,0.0003599,2]
[392794237,1761954745848,-1193.36495251,0.0003704,2]
[392794238,1761954745903,-2417.72576718,0.00037073,2]
[392794340,1761954944690,-160.0,0.000338,2]
[392794341,1761954944720,-677.49848227,0.00034101,2]
[392794342,1761954944750,-260.0,0.00034348,2]
[392794343,1761954944778,-360.0,0.00034896,2]
[392794344,1761954944806,-460.0,0.00035444,2]
[392794345,1761954944834,-421.84304698,0.00035775,2]
[392794346,1761954944861,-2003.72515044,0.00035842,2]
[392794347,1761954944981,-1313.87664062,0.00035874,3]
[392794348,1761954945015,-286.12335938,0.00035874,3]
[392794349,1761954945043,-1219.49726808,0.00035985,2]
[392794350,1761954945071,-560.0,0.00035992,2]
[392794351,1761954945098,-400.0,0.00036025,3]
[392794352,1761954945126,-400.0,0.00036025,3]
[392794353,1761954945153,-300.0,0.00036025,3]
[392794354,1761954945181,-400.0,0.00036025,2]
[392794355,1761954945213,-400.0,0.00036025,3]
[392794356,1761954945241,-65.04359464,0.00036072,2]
[392794357,1761954945272,-1938.6815558,0.00036072,2]
[392794358,1761954945300,-2003.72515044,0.00036421,2]
[392794359,1761954945329,-111.47143708,0.00036493,2]
[392794360,1761954945471,-1892.25371336,0.00036493,2]
[392794361,1761954945500,-660.0,0.0003654,2]
[392794362,1761954945612,-1278.6815558,0.0003675,2]
[392794363,1761954945636,-1892.25371336,0.0003675,2]
[392794364,1761954945651,-660.0,0.0003675,2]
[392794365,1761954945665,-4895.50257328,0.0003675,2]
[392794366,1761954945696,-2323.74591754,0.0003675,2]
[392794367,1761954945719,-5352.51816492,0.0003675,2]
[392794368,1761954945728,-971.0,0.00036769,2]
[392794369,1761954945738,-1352.74591754,0.0003696,2]
[392794370,1761954945752,-650.9792329,0.0003696,2]
[392794371,1761954945762,-360.0,0.00037088,2]
[392794372,1761954945771,-1600.0,0.00037125,3]
[392794373,1761954945783,-301.87865734,0.00037125,15]
[392794374,1761954945792,-500.0,0.00037125,2]
[392794375,1761954945802,-265.65337082,0.00037125,15]
[392794376,1761954945811,-500.0,0.00037125,15]
[392794377,1761954945821,-500.0,0.00037125,15]
[392794378,1761954945830,-500.0,0.00037125,15]
[392794379,1761954945839,-469.75245263,0.00037125,15]
[392794380,1761954945848,-500.0,0.00037125,2]
[392794381,1761954945857,-434.53736262,0.00037125,15]
[392794382,1761954945866,-500.0,0.00037125,15]
[392794383,1761954945875,-463.0739249,0.00037125,2]
[392794384,1761954945884,-130.38908125,0.00037125,15]
[392794385,1761954945919,-369.61091875,0.00037125,15]
[392794386,1761954945949,-500.0,0.00037125,2]
[392794387,1761954945980,-500.0,0.00037125,15]
[392794388,1761954946009,-500.0,0.00037125,15]
[392794389,1761954946041,-500.0,0.00037125,2]
[392794390,1761954946070,-500.0,0.00037125,15]
[392794391,1761954946102,-500.0,0.00037125,15]
[392794392,1761954946131,-500.0,0.00037125,15]
[392794393,1761954946162,-324.39354536,0.00037125,15]
[392794394,1761954946190,-500.0,0.00037125,15]
[392794395,1761954946219,-282.14499959,0.00037126,15]
[392794396,1761954946390,-47.7110726,0.00037126,15]
[392794431,1761955021078,150.0,0.0002589,2]
[392794432,1761955021833,-177.0,0.0002789,2]
[392794433,1761955021860,204.0,0.0002989,2]
[392794468,1761955088519,201.039311,0.0003425,60]
[392794483,1761955119157,161.0,0.000356,60]
[392794507,1761955181124,851.0,0.00035362,120]
[392794573,1761955333208,266.29014391,0.0002589,2]
[392794589,1761955375310,-1680.56376151,0.00026,2]
[392794590,1761955376927,-154.22493,0.00026,2]
[392794591,1761955377223,-154.22493,0.00026,2]
[392794593,1761955379408,-300.0,0.00026,2]
[392794594,1761955380618,5000.0,0.00026,2]
[392794595,1761955381768,-509.0697,0.00026,2]
[392794596,1761955383903,-168.51075,0.00026,2]
[392794600,1761955386183,-2033.40592849,0.00026,2]
[392794602,1761955388923,204.0,0.00026,2]
[392794603,1761955388948,4796.0,0.00026,2]
[392794604,1761955389492,640.0,0.00035093,120]
[392794607,1761955396697,1137.19814302,0.00026,2]
[392794608,1761955396722,3862.80185698,0.00026,2]
[392794612,1761955406997,-177.0,0.00026945,2]
[392794613,1761955412575,5000.0,0.00026,2]
[392794618,1761955420724,5000.0,0.00026,2]
[392794622,1761955435601,5000.0,0.00026,2]
[392794628,1761955443984,0.01,0.00026,2]
[392794629,1761955444010,4999.99,0.00026,2]
[392794636,1761955458882,5000.0,0.00026,2]
[392794637,1761955466717,0.02,0.00026,2]
[392794638,1761955466740,4999.98,0.00026,2]
[392794641,1761955481612,1058.56151198,0.00026,2]
[392794643,1761955486257,5226.10895611,0.00037949,120]
[392794644,1761955489953,3941.46848802,0.00026,2]
[392794645,1761955489976,1058.53151198,0.00026,2]
[392794651,1761955512664,2796.97399461,0.00026,2]
[392794654,1761955516962,392.751385,0.00013699,2]
[392794656,1761955517192,392.751385,0.00020187,2]
[392794694,1761955606335,5000.0,0.00026,2]
[392794703,1761955628856,359.00172341,0.00026,2]
[392794704,1761955628879,1649.56849311,0.00026,2]
[392794713,1761955644349,150.0,0.00025807,2]
[392794729,1761955683290,163.6,0.00018082,4]
[392794738,1761955701825,5000.0,0.00026,2]
[392794837,1761955832198,-5000.0,0.0002641,2]
[392794839,1761955832208,-169.43549047,0.00026576,2]
[392794841,1761955832217,-392.751385,0.00026676,2]
[392794843,1761955832227,-1200.0,0.00026848,2]
[392794845,1761955832238,-284.0,0.00027805,2]
[392794847,1761955832248,-300.0,0.00027805,2]
[392794849,1761955832257,-300.0,0.00027805,2]
[392794851,1761955832267,-300.0,0.00027805,2]
[392794853,1761955832277,-300.0,0.00027806,2]
[392794855,1761955832286,-231.0,0.00027807,2]
[392794857,1761955832295,-1680.0,0.00029159,2]
[392794859,1761955832304,-501.82387539,0.0002985,5]
[392794861,1761955832314,-501.00061196,0.0002985,5]
[392794863,1761955832323,-502.66351706,0.0002985,5]
[392794865,1761955832332,-500.0,0.0002985,5]
[392794867,1761955832342,-501.22748686,0.0002985,5]
[392794869,1761955832351,-501.51752996,0.0002985,5]
[392794871,1761955832360,-262.61723463,0.0002985,5]
[392794873,1761955832369,-162.51738011,0.0002985,5]
[392794875,1761955832378,-502.06354049,0.0002985,5]
[392794877,1761955832388,-173.5755,0.0003,2]
[392794879,1761955832397,-420.0,0.00030035,2]
[392794881,1761955832407,-200.0,0.00030037,2]
[392794883,1761955832416,-509.68696749,0.00030398,5]
[392794885,1761955832426,-1204.81766467,0.0003179,2]
[392794887,1761955832435,-200.0,0.0003179,2]
[392794889,1761955832444,-50000.0,0.0003179,2]
[392794891,1761955832454,-1136.0,0.00033163,3]
[392794893,1761955832463,-392.751385,0.00033165,2]
[392794895,1761955832473,-267.87453107,0.00033625,2]
[392794897,1761955832482,-306.14232122,0.00033625,2]
[392794899,1761955832492,-477.86902953,0.00033625,2]
[392794901,1761955832501,-194.12428583,0.00033625,2]
[392794903,1761955832510,-349.4237145,0.00033625,2]
[392794905,1761955832519,-621.19771467,0.00033625,2]
[392794907,1761955832529,-969.65080774,0.00033625,2]
[392794909,1761955832539,-273.67488054,0.00033648,2]
[392794911,1761955832548,-500.0,0.00033648,7]
[392794913,1761955832557,-500.0,0.00033648,7]
[392794915,1761955832566,-500.0,0.00033648,7]
[392794917,1761955832576,-385.52805029,0.00033648,7]
[392794919,1761955832585,-500.0,0.00033648,7]
[392794921,1761955832595,-500.0,0.00033648,7]
[392794923,1761955832604,-500.0,0.00033648,7]
[392794925,1761955832613,-500.0,0.00033648,7]
[392794927,1761955832622,-500.0,0.00033648,7]
[392794929,1761955832632,-500.0,0.00033648,7]
[392794931,1761955832644,-500.0,0.00033648,7]
[392794933,1761955832653,-500.0,0.00033648,7]
[392794935,1761955832662,-500.0,0.00033648,7]
[392794937,1761955832671,-500.0,0.00033648,7]
[392794939,1761955832680,-500.0,0.00033648,7]
[392794941,1761955832690,-218.06344632,0.00033648,7]